Workbook

Sheet Zaawansowane
A1: Dane tygodniowe | J1: Tygodniowe stopy zwrotu
A2: Data | B2: wig_d.csv | C2: pzu_d.csv | D2: pko_d.csv | E2: pkn_d.csv | F2: peo_d.csv | G2: lpp_d.csv | H2: cdr_d.csv | I2: ccc_d.csv
A3: 2010-10-01 | B3: 45225.58 | C3: 21.059 | D3: 34.712 | E3: 31.337 | F3: 103.92 | G3: 1606.8 | H3: 2.9329 | I3: 49.787 | J3: =B2:I2 -> wig_d.csv | K3: pzu_d.csv | L3: pko_d.csv | M3: pkn_d.csv | N3: peo_d.csv | O3: lpp_d.csv | P3: cdr_d.csv | Q3: ccc_d.csv | T3: wig_d.csv | U3: pzu_d.csv | V3: pko_d.csv | W3: pkn_d.csv | X3: peo_d.csv | Y3: lpp_d.csv | Z3: cdr_d.csv | AA3: ccc_d.csv
A4: 2010-10-08 | B4: 45227.66 | C4: 20.665 | D4: 34.786 | E4: 30.675 | F4: 107.54 | G4: 1666.99 | H4: 2.7368 | I4: 48.531 | J4: =B4/B3-1 -> 4.599167109e-05 | K4: =C4/C3-1 -> -0.01870934042 | L4: 0.00213182761 | M4: -0.02112518748 | N4: 0.03483448807 | O4: 0.03745954693 | P4: -0.06686215009 | Q4: -0.02522746902 | S4: Średnia | T4: 0.0004186224257 | U4: 0.0008198906607 | V4: -0.0004530953221 | W4: 0.001714924766 | X4: -0.0008159062139 | Y4: 0.003901608646 | Z4: 0.01139570945 | AA4: 0.001586332284
A5: 2010-10-15 | B5: 45806.33 | C5: 20.217 | D5: 35.686 | E5: 31.425 | F5: 110.68 | G5: 1684.82 | H5: 2.5798 | I5: 52.946 | J5: =B5/B4-1 -> 0.01279460401 | K5: -0.02167916767 | L5: 0.02587247743 | M5: 0.02444987775 | N5: 0.02919843779 | O5: 0.01069592499 | P5: -0.05736626717 | Q5: 0.09097278028 | S5: Odchylenie | T5: 0.02376904549 | U5: 0.03232777186 | V5: 0.03473642955 | W5: 0.04558004283 | X5: 0.03554457792 | Y5: 0.04801785164 | Z5: 0.06129437995 | AA5: 0.05951163599
A6: 2010-10-22 | B6: 45729.01 | C6: 20.058 | D6: 37.099 | E6: 31.227 | F6: 112.38 | G6: 1736.5 | H6: 2.6289 | I6: 53.163 | J6: -0.001687976312 | K6: -0.007864668348 | L6: 0.03959535952 | M6: -0.00630071599 | N6: 0.01535959523 | O6: 0.03067389988 | P6: 0.01903248314 | Q6: 0.004098515469 | S6: Minimum | T6: -0.216854197 | U6: -0.2267241379 | V6: -0.2325277596 | W6: -0.200008321 | X6: -0.2899197145 | Y6: -0.2984660336 | Z6: -0.3161824233 | AA6: -0.4746887967
A7: 2010-10-29 | B7: 46229.6 | C7: 19.907 | D7: 36.531 | E7: 31.668 | F7: 112.56 | G7: 1731.15 | H7: 2.3542 | I7: 53.597 | J7: 0.01094688033 | K7: -0.007528168312 | L7: -0.01531038572 | M7: 0.01412239408 | N7: 0.001601708489 | O7: -0.003080909876 | P7: -0.1044923732 | Q7: 0.008163572409 | S7: Maksimum | T7: 0.0714348832 | U7: 0.1233742103 | V7: 0.1575706935 | W7: 0.1717422789 | X7: 0.09976156414 | Y7: 0.2707788381 | Z7: 0.2882990448 | AA7: 0.4728361909
A8: 2010-11-05 | B8: 47232.31 | C8: 20.086 | D8: 37.585 | E8: 36.086 | F8: 115.52 | G8: 1757.9 | H8: 2.5013 | I8: 55.242 | J8: 0.02168978317 | K8: 0.008991811925 | L8: 0.02885220771 | M8: 0.1395099154 | N8: 0.026297086 | O8: 0.01545215608 | P8: 0.06248407102 | Q8: 0.03069201634 | S8: Kwantyl 0,05 | T8: -0.03303655049 | U8: -0.0469928751 | V8: -0.05578074899 | W8: -0.07332928838 | X8: -0.05654450262 | Y8: -0.06884420883 | Z8: -0.07810526316 | AA8: -0.08195542775
A9: 2010-11-12 | B9: 47493.93 | C9: 19.48 | D9: 37.261 | E9: 34.969 | F9: 114.19 | G9: 1925.48 | H9: 2.6485 | I9: 54.332 | J9: 0.005539004974 | K9: -0.03017026785 | L9: -0.00862046029 | M9: -0.03095383251 | N9: -0.01151315789 | O9: 0.0953296547 | P9: 0.05884939831 | Q9: -0.01647297346 | S9: Kwantyl 0,95 | T9: 0.03534527429 | U9: 0.05108882692 | V9: 0.05252112292 | W9: 0.07365193784 | X9: 0.05346236218 | Y9: 0.08555760013 | Z9: 0.09932792179 | AA9: 0.08265765446
A10: 2010-11-19 | B10: 46005.8 | C10: 19.233 | D10: 34.834 | E10: 33.944 | F10: 109.96 | G10: 1950 | H10: 2.8839 | I10: 53.682 | J10: -0.03133305667 | K10: -0.01267967146 | L10: -0.06513512788 | M10: -0.02931167606 | N10: -0.03704352395 | O10: 0.01273448699 | P10: 0.0888804984 | Q10: -0.01196348377
A11: 2010-11-26 | B11: 45641.9 | C11: 18.584 | D11: 35.069 | E11: 35.007 | F11: 108.09 | G11: 1829.21 | H11: 2.8544 | I11: 54.289 | J11: -0.007909872234 | K11: -0.03374408569 | L11: 0.006746282368 | M11: 0.03131628565 | N11: -0.01700618407 | O11: -0.06194358974 | P11: -0.01022920351 | Q11: 0.01130732834 | T11: wig_d.csv | U11: pzu_d.csv | V11: pko_d.csv | W11: pkn_d.csv | X11: peo_d.csv | Y11: lpp_d.csv | Z11: cdr_d.csv | AA11: ccc_d.csv
A12: 2010-12-03 | B12: 46868.43 | C12: 19.105 | D12: 36.368 | E12: 36.387 | F12: 111.11 | G12: 1918.36 | H12: 2.7956 | I12: 54.982 | J12: 0.0268728953 | K12: 0.0280348687 | L12: 0.03704126151 | M12: 0.03942068729 | N12: 0.0279396799 | O12: 0.04873688642 | P12: -0.02059977578 | Q12: 0.01276501685 | S12: wig_d.csv | T12: 1 | U12: 0.7101836915 | V12: 0.7414368284 | W12: 0.6477415106 | X12: 0.7423304864 | Y12: 0.5562967501 | Z12: 0.4118286596 | AA12: 0.5539311863
A13: 2010-12-10 | B13: 47510.17 | C13: 18.981 | D13: 36.205 | E13: 38.433 | F13: 112.99 | G13: 1952.23 | H13: 2.7368 | I13: 54.852 | J13: 0.01369237246 | K13: -0.006490447527 | L13: -0.004481962165 | M13: 0.05622887295 | N13: 0.0169201692 | O13: 0.01765570592 | P13: -0.02103305194 | Q13: -0.002364410171 | S13: pzu_d.csv | T13: 0.7101836915 | U13: 1 | V13: 0.5100320603 | W13: 0.4198117824 | X13: 0.5350768961 | Y13: 0.4244318074 | Z13: 0.2270510627 | AA13: 0.34049886
A14: 2010-12-17 | B14: 47651.54 | C14: 18.9 | D14: 36.359 | E14: 38.047 | F14: 112.38 | G14: 1952.23 | H14: 2.7465 | I14: 57.147 | J14: 0.00297557344 | K14: -0.00426742532 | L14: 0.004253556139 | M14: -0.01004345224 | N14: -0.00539870785 | O14: 0 | P14: 0.003544285297 | Q14: 0.04183985999 | S14: pko_d.csv | T14: 0.7414368284 | U14: 0.5100320603 | V14: 1 | W14: 0.375171178 | X14: 0.6821987708 | Y14: 0.2898642693 | Z14: 0.2419787382 | AA14: 0.3631197071
A15: 2010-12-24 | B15: 47718.8 | C15: 18.785 | D15: 35.516 | E15: 38.441 | F15: 111.78 | G15: 1897.85 | H15: 3.0311 | I15: 59.657 | J15: 0.001411496879 | K15: -0.006084656085 | L15: -0.02318545615 | M15: 0.01035561279 | N15: -0.005339028297 | O15: -0.02785532442 | P15: 0.1036227926 | Q15: 0.04392181567 | S15: pkn_d.csv | T15: 0.6477415106 | U15: 0.4198117824 | V15: 0.375171178 | W15: 1 | X15: 0.415097516 | Y15: 0.2927167514 | Z15: 0.188452887 | AA15: 0.2787043178
A16: 2010-12-31 | B16: 47489.91 | C16: 18.717 | D16: 35.192 | E16: 36.07 | F16: 108.15 | G16: 1929.94 | H16: 3.0408 | I16: 58.875 | J16: -0.004796641994 | K16: -0.003619909502 | L16: -0.009122648947 | M16: -0.06167893655 | N16: -0.03247450349 | O16: 0.01690860711 | P16: 0.003200158358 | Q16: -0.01310826894 | S16: peo_d.csv | T16: 0.7423304864 | U16: 0.5350768961 | V16: 0.6821987708 | W16: 0.415097516 | X16: 1 | Y16: 0.3352637905 | Z16: 0.2306839064 | AA16: 0.4432554767
A17: 2011-01-07 | B17: 46850.41 | C17: 18.48 | D17: 32.673 | E17: 35.678 | F17: 104.41 | G17: 1880.93 | H17: 3.1683 | I17: 55.935 | J17: -0.01346601836 | K17: -0.01266228562 | L17: -0.0715787679 | M17: -0.01086775714 | N17: -0.03458159963 | O17: -0.02539457185 | P17: 0.04192975533 | Q17: -0.04993630573 | S17: lpp_d.csv | T17: 0.5562967501 | U17: 0.4244318074 | V17: 0.2898642693 | W17: 0.2927167514 | X17: 0.3352637905 | Y17: 1 | Z17: 0.2568503344 | AA17: 0.4538310644
A18: 2011-01-14 | B18: 47258.66 | C18: 17.954 | D18: 33.526 | E18: 37.489 | F18: 102.71 | G18: 1907.67 | H18: 3.3842 | I18: 54.723 | J18: 0.008713904531 | K18: -0.02846320346 | L18: 0.0261071833 | M18: 0.05075957172 | N18: -0.01628196533 | O18: 0.01421637169 | P18: 0.06814379951 | Q18: -0.02166800751 | S18: cdr_d.csv | T18: 0.4118286596 | U18: 0.2270510627 | V18: 0.2419787382 | W18: 0.188452887 | X18: 0.2306839064 | Y18: 0.2568503344 | Z18: 1 | AA18: 0.2135543301
A19: 2011-01-21 | B19: 47641.43 | C19: 18.353 | D19: 34.654 | E19: 37.236 | F19: 106.46 | G19: 1846.6 | H19: 4.2277 | I19: 55.415 | J19: 0.008099467907 | K19: 0.02222345995 | L19: 0.03364552884 | M19: -0.00674864627 | N19: 0.03651056372 | O19: -0.03201287434 | P19: 0.2492464984 | Q19: 0.01264550555 | S19: ccc_d.csv | T19: 0.5539311863 | U19: 0.34049886 | V19: 0.3631197071 | W19: 0.2787043178 | X19: 0.4432554767 | Y19: 0.4538310644 | Z19: 0.2135543301 | AA19: 1
A20: 2011-01-28 | B20: 47223.01 | C20: 18.216 | D20: 33.762 | E20: 37.724 | F20: 102.11 | G20: 1843.47 | H20: 5.0909 | I20: 55.848 | J20: -0.008782691871 | K20: -0.007464719664 | L20: -0.02574017429 | M20: 0.01310559673 | N20: -0.04086041706 | O20: -0.00169500704 | P20: 0.2041772122 | Q20: 0.007813768835
A21: 2011-02-04 | B21: 47796.39 | C21: 18.553 | D21: 34.257 | E21: 36.645 | F21: 104.82 | G21: 1809.62 | H21: 4.9046 | I21: 54.116 | J21: 0.01214196215 | K21: 0.01850021959 | L21: 0.01466145371 | M21: -0.02860248118 | N21: 0.02654000588 | O21: -0.01836211058 | P21: -0.0365947082 | Q21: -0.03101274889
A22: 2011-02-11 | B22: 47547.85 | C22: 18.374 | D22: 34.224 | E22: 36.151 | F22: 100.9 | G22: 1847.96 | H22: 6.0424 | I22: 52.037 | J22: -0.005199974308 | K22: -0.009648035358 | L22: -0.0009633067694 | M22: -0.01348069314 | N22: -0.03739744324 | O22: 0.02118676849 | P22: 0.2319862986 | Q22: -0.03841747358
A23: 2011-02-18 | B23: 46761.43 | C23: 18.069 | D23: 34.095 | E23: 34.772 | F23: 98.595 | G23: 1812.28 | H23: 7.6315 | I23: 51.519 | J23: -0.01653954911 | K23: -0.01659954283 | L23: -0.003769284712 | M23: -0.03814555614 | N23: -0.0228444004 | O23: -0.01930777722 | P23: 0.2629915265 | Q23: -0.009954455484
A24: 2011-02-25 | B24: 46874.11 | C24: 18.316 | D24: 33.446 | E24: 35.292 | F24: 98.595 | G24: 1862.2 | H24: 6.3759 | I24: 51.606 | J24: 0.002409678233 | K24: 0.01366982124 | L24: -0.01903504913 | M24: 0.01495456114 | N24: 0 | O24: 0.02754541241 | P24: -0.1645285986 | Q24: 0.001688697374
A25: 2011-03-04 | B25: 48295.76 | C25: 18.427 | D25: 35.304 | E25: 39.087 | F25: 103.32 | G25: 1854.18 | H25: 6.0424 | I25: 51.519 | J25: 0.03032910918 | K25: 0.006060275169 | L25: 0.05555223345 | M25: 0.1075314519 | N25: 0.04792332268 | O25: -0.004306733971 | P25: -0.05230634107 | Q25: -0.001685850483
A26: 2011-03-11 | B26: 47689.93 | C26: 18.006 | D26: 34.339 | E26: 39.772 | F26: 101.62 | G26: 1845.27 | H26: 6.886 | I26: 50.22 | J26: -0.01254416537 | K26: -0.02284690943 | L26: -0.02733401314 | M26: 0.01752500831 | N26: -0.01645373597 | O26: -0.004805358703 | P26: 0.1396133986 | Q26: -0.02521399872
A27: 2011-03-18 | B27: 48010.91 | C27: 19.079 | D27: 34.906 | E27: 40.953 | F27: 101.02 | G27: 1747.22 | H27: 6.9351 | I27: 50.22 | J27: 0.006730561358 | K27: 0.05959124736 | L27: 0.01651183785 | M27: 0.02969425727 | N27: -0.005904349537 | O27: -0.05313585546 | P27: 0.007130409527 | Q27: 0
A28: 2011-03-25 | B28: 48626.25 | C28: 18.559 | D28: 35.629 | E28: 41.544 | F28: 102.41 | G28: 1782.87 | H28: 7.7394 | I28: 51.519 | J28: 0.01281667021 | K28: -0.02725509723 | L28: 0.02071277144 | M28: 0.0144311772 | N28: 0.01375965155 | O28: 0.02040384153 | P28: 0.1159752563 | Q28: 0.02586618877
A29: 2011-04-01 | B29: 49503.34 | C29: 19.053 | D29: 36.294 | E29: 44.183 | F29: 105.74 | G29: 1845.27 | H29: 8.1416 | I29: 50.652 | J29: 0.01803737693 | K29: 0.02661781346 | L29: 0.018664571 | M29: 0.06352301175 | N29: 0.03251635582 | O29: 0.0349997476 | P29: 0.05196785281 | Q29: -0.01682874279
A30: 2011-04-08 | B30: 49986.15 | C30: 19.191 | D30: 37.041 | E30: 44.891 | F30: 105.49 | G30: 1872.02 | H30: 8.171 | I30: 51.043 | J30: 0.009753079287 | K30: 0.007242953866 | L30: 0.02058191437 | M30: 0.01602426273 | N30: -0.002364289767 | O30: 0.01449652354 | P30: 0.003611083816 | Q30: 0.007719339809
A31: 2011-04-15 | B31: 50016.31 | C31: 19.169 | D31: 37.545 | E31: 45.049 | F31: 106.34 | G31: 1879.15 | H31: 8.8282 | I31: 51.519 | J31: 0.0006033671327 | K31: -0.001146370695 | L31: 0.0136065441 | M31: 0.003519636453 | N31: 0.008057635795 | O31: 0.003808719992 | P31: 0.08043079182 | Q31: 0.009325470682
A32: 2011-04-22 | B32: 49966.31 | C32: 19.132 | D32: 36.814 | E32: 44.735 | F32: 105.74 | G32: 1880.93 | H32: 9.514 | I32: 51.606 | J32: -0.0009996739064 | K32: -0.001930199802 | L32: -0.01946996937 | M32: -0.006970188017 | N32: -0.005642279481 | O32: 0.0009472367826 | P32: 0.07768287986 | Q32: 0.001688697374
A33: 2011-04-29 | B33: 50008.98 | C33: 19.637 | D33: 37.098 | E33: 43.553 | F33: 105.12 | G33: 1916.59 | H33: 8.9166 | I33: 51.087 | J33: 0.0008539754086 | K33: 0.02639556764 | L33: 0.007714456457 | M33: -0.02642226445 | N33: -0.005863438623 | O33: 0.0189587066 | P33: -0.06279167543 | Q33: -0.01005697012
A34: 2011-05-06 | B34: 49321.53 | C34: 19.69 | D34: 37.058 | E34: 41.702 | F34: 106.27 | G34: 1995.03 | H34: 8.7302 | I34: 51.519 | J34: -0.01374653112 | K34: 0.002698986607 | L34: -0.001078225241 | M34: -0.0424999426 | N34: 0.01093987823 | O34: 0.04092685447 | P34: -0.02090482919 | Q34: 0.008456163016
A35: 2011-05-13 | B35: 48677.61 | C35: 20.527 | D35: 35.069 | E35: 40.562 | F35: 103.08 | G35: 2005.27 | H35: 8.9459 | I35: 50.652 | J35: -0.01305555606 | K35: 0.04250888776 | L35: -0.0536726213 | M35: -0.02733681838 | N35: -0.03001787899 | O35: 0.005132754896 | P35: 0.02470733775 | Q35: -0.01682874279
A36: 2011-05-20 | B36: 48858.84 | C36: 20.533 | D36: 35.311 | E36: 40.519 | F36: 103.82 | G36: 1978.99 | H36: 8.9263 | I36: 50.652 | J36: 0.00372306693 | K36: 0.000292297949 | L36: 0.006900681514 | M36: -0.001060105517 | N36: 0.007178890182 | O36: -0.01310546709 | P36: -0.002190947808 | Q36: 0
A37: 2011-05-27 | B37: 49425.67 | C37: 20.533 | D37: 35.094 | E37: 41.506 | F37: 103.19 | G37: 2067.22 | H37: 8.3868 | I37: 49.787 | J37: 0.01160138063 | K37: 0 | L37: -0.006145393787 | M37: 0.02435894272 | N37: -0.006068194953 | O37: 0.04458334807 | P37: -0.06043937578 | Q37: -0.01707731185
A38: 2011-06-03 | B38: 49638.88 | C38: 20.533 | D38: 35.555 | E38: 41.151 | F38: 105.71 | G38: 2077.04 | H38: 8.3377 | I38: 51.647 | J38: 0.004313750324 | K38: 0 | L38: 0.01313614863 | M38: -0.008552980292 | N38: 0.02442097102 | O38: 0.004750341038 | P38: -0.005854437926 | Q38: 0.03735914998
A39: 2011-06-10 | B39: 49077.61 | C39: 19.584 | D39: 34.906 | E39: 41.033 | F39: 105.71 | G39: 2028 | H39: 7.7493 | I39: 51.519 | J39: -0.01130706414 | K39: -0.04621828276 | L39: -0.01825341021 | M39: -0.002867488032 | N39: 0 | O39: -0.02361052267 | P39: -0.07057102079 | Q39: -0.002478362732
A40: 2011-06-17 | B40: 49353.4 | C40: 20.427 | D40: 34.826 | E40: 41.584 | F40: 108.16 | G40: 2050.3 | H40: 7.5433 | I40: 51.259 | J40: 0.0056194668 | K40: 0.04304534314 | L40: -0.002291869593 | M40: 0.01342821631 | N40: 0.02317661527 | O40: 0.01099605523 | P40: -0.02658304621 | Q40: -0.005046681807
A41: 2011-06-24 | B41: 48394.02 | C41: 20.006 | D41: 33.494 | E41: 40.639 | F41: 102.56 | G41: 2040.48 | H41: 6.9645 | I41: 51.086 | J41: -0.01943898495 | K41: -0.02060997699 | L41: -0.03824728651 | M41: -0.02272508657 | N41: -0.05177514793 | O41: -0.004789542994 | P41: -0.07673034348 | Q41: -0.00337501707
A42: 2011-07-01 | B42: 48551.19 | C42: 20.033 | D42: 34.119 | E42: 41.23 | F42: 104.01 | G42: 2005.73 | H42: 7.2588 | I42: 49.266 | J42: 0.003247715317 | K42: 0.001349595121 | L42: 0.01866005852 | M42: 0.01454268068 | N42: 0.01413806552 | O42: -0.01703030659 | P42: 0.04225716132 | Q42: -0.03562619896
A43: 2011-07-08 | B43: 48700.58 | C43: 19.85 | D43: 33.526 | E43: 41.584 | F43: 105.14 | G43: 2014.18 | H43: 6.7684 | I43: 50.22 | J43: 0.003076958567 | K43: -0.00913492737 | L43: -0.01738034526 | M43: 0.008585981082 | N43: 0.01086433997 | O43: 0.004212929956 | P43: -0.06755937621 | Q43: 0.01936426745
A44: 2011-07-15 | B44: 47785.85 | C44: 19.584 | D44: 33.257 | E44: 38.433 | F44: 103.82 | G44: 1983.89 | H44: 7.043 | I44: 48.401 | J44: -0.01878273318 | K44: -0.01340050378 | L44: -0.008023623456 | M44: -0.07577433628 | N44: -0.01255468899 | O44: -0.0150383779 | P44: 0.04057088825 | Q44: -0.03622062923
A45: 2011-07-22 | B45: 47501.78 | C45: 19.837 | D45: 34.151 | E45: 37.245 | F45: 101.93 | G45: 1962.93 | H45: 6.9645 | I45: 48.401 | J45: -0.005944646794 | K45: 0.01291870915 | L45: 0.02688155877 | M45: -0.03091093591 | N45: -0.01820458486 | O45: -0.0105651019 | P45: -0.01114581854 | Q45: 0
A46: 2011-07-29 | B46: 47152.63 | C46: 19.954 | D46: 33.381 | E46: 36.842 | F46: 100.24 | G46: 1992.34 | H46: 6.6702 | I46: 48.484 | J46: -0.007350250875 | K46: 0.005898069265 | L46: -0.02254692396 | M46: -0.01082024433 | N46: -0.01658000589 | O46: 0.01498270443 | P46: -0.04225716132 | Q46: 0.001714840602
A47: 2011-08-05 | B47: 42011.33 | C47: 18.539 | D47: 29.835 | E47: 32.22 | F47: 90.358 | G47: 1782.87 | H47: 4.5612 | I47: 44.16 | J47: -0.1090352754 | K47: -0.07091310013 | L47: -0.1062280938 | M47: -0.1254546442 | N47: -0.09858339984 | O47: -0.1051376773 | P47: -0.3161824233 | Q47: -0.08918406072
A48: 2011-08-12 | B48: 39910.95 | C48: 18.163 | D48: 29.175 | E48: 29.14 | F48: 89.668 | G48: 1649.15 | H48: 5.2969 | I48: 38.791 | J48: -0.04999556072 | K48: -0.02028156859 | L48: -0.02212166918 | M48: -0.0955927995 | N48: -0.007636291197 | O48: -0.07500266424 | P48: 0.1612952732 | Q48: -0.1215806159
A49: 2011-08-19 | B49: 38749.61 | C49: 17.637 | D49: 28.78 | E49: 27.416 | F49: 81.542 | G49: 1631.32 | H49: 4.6594 | I49: 34.631 | J49: -0.02909828005 | K49: -0.02895997357 | L49: -0.01353898886 | M49: -0.05916266301 | N49: -0.09062318776 | O49: -0.01081163023 | P49: -0.1203534143 | Q49: -0.1072413704
A50: 2011-08-26 | B50: 39774 | C50: 17.22 | D50: 29.63 | E50: 29.259 | F50: 84.252 | G50: 1689.26 | H50: 5.0812 | I50: 34.202 | J50: =B50/B49-1 -> 0.02643613703 | K50: -0.02364347678 | L50: 0.02953439889 | M50: 0.06722351911 | N50: 0.03323440681 | O50: 0.03551724983 | P50: 0.09052667725 | Q50: -0.01238774508
A51: 2011-09-02 | B51: 40544.28 | C51: 18.347 | D51: 29.647 | E51: 29.944 | F51: 89.414 | G51: 1787.32 | H51: 4.7771 | I51: 37.772 | J51: 0.01936642027 | K51: 0.06544715447 | L51: 0.0005737428282 | M51: 0.02341159985 | N51: 0.06126857523 | O51: 0.05804908658 | P51: -0.05984806739 | Q51: 0.1043798608
A52: 2011-09-09 | B52: 38708.57 | C52: 17.69 | D52: 26.523 | E52: 28.668 | F52: 81.795 | G52: 1738.49 | H52: 4.3063 | I52: 36.965 | J52: -0.04527667035 | K52: -0.03580966916 | L52: -0.1053732249 | M52: -0.04261287737 | N52: -0.08521036974 | O52: -0.02732023365 | P52: -0.09855351573 | Q52: -0.0213650323
A53: 2011-09-16 | B53: 39254.5 | C53: 18.216 | D53: 27.382 | E53: 29.455 | F53: 85.255 | G53: 1739.42 | H53: 4.0021 | I53: 34.273 | J53: 0.01410359515 | K53: 0.02973431317 | L53: 0.03238698488 | M53: 0.02745221153 | N53: 0.04230087414 | O53: 0.0005349469942 | P53: -0.07064068922 | Q53: -0.07282564588
A54: 2011-09-23 | B54: 36549.47 | C54: 17.889 | D54: 25.664 | E54: 25.438 | F54: 78.144 | G54: 1706.94 | H54: 3.4332 | I54: 33.628 | J54: -0.06891006127 | K54: -0.01795125165 | L54: -0.06274194726 | M54: -0.136377525 | N54: -0.08340859774 | O54: -0.01867289096 | P54: -0.1421503711 | Q54: -0.01881947889
A55: 2011-09-30 | B55: 38268.75 | C55: 17.941 | D55: 28.239 | E55: 28.738 | F55: 84.44 | G55: 1832.2 | H55: 3.5117 | I55: 38.041 | J55: 0.0470398066 | K55: 0.002906814243 | L55: 0.1003350998 | M55: 0.1297271798 | N55: 0.08056920557 | O55: 0.07338277854 | P55: 0.02286496563 | Q55: 0.1312299274
A56: 2011-10-07 | B56: 38174.89 | C56: 17.456 | D56: 28.497 | E56: 27.407 | F56: 88.093 | G56: 1809 | H56: 3.7864 | I56: 37.861 | J56: -0.002452653928 | K56: -0.02703305278 | L56: 0.009136300861 | M56: -0.04631498365 | N56: 0.04326148745 | O56: -0.0126623731 | P56: 0.07822422189 | Q56: -0.00473173681
A57: 2011-10-14 | B57: 40026.63 | C57: 17.885 | D57: 30.273 | E57: 30.354 | F57: 89.912 | G57: 1809 | H57: 4.012 | I57: 36.965 | J57: 0.04850675405 | K57: 0.02457607699 | L57: 0.06232234972 | M57: 0.1075272741 | N57: 0.02064863269 | O57: 0 | P57: 0.05958166068 | Q57: -0.02366551333
A58: 2011-10-21 | B58: 40054.41 | C58: 18.328 | D58: 30.548 | E58: 30.361 | F58: 89.668 | G58: 1749.17 | H58: 4.3552 | I58: 35.708 | J58: 0.0006940379442 | K58: 0.0247693598 | L58: 0.009084002246 | M58: 0.0002306121104 | N58: -0.00271376457 | O58: -0.03307352128 | P58: 0.08554336989 | Q58: -0.03400514
A59: 2011-10-28 | B59: 41686.02 | C59: 19.239 | D59: 31.158 | E59: 31.699 | F59: 95.955 | G59: 1926.82 | H59: 5.6108 | I59: 38.579 | J59: 0.04073484043 | K59: 0.04970536883 | L59: 0.01996857405 | M59: 0.04406969467 | N59: 0.07011419905 | O59: 0.1015624553 | P59: 0.2882990448 | Q59: 0.08040215078
A60: 2011-11-04 | B60: 40909.81 | C60: 19.245 | D60: 29.879 | E60: 31.47 | F60: 92.605 | G60: 1994.55 | H60: 5.4735 | I60: 40.598 | J60: -0.0186203912 | K60: 0.0003118665211 | L60: -0.04104884781 | M60: -0.007224202656 | N60: -0.03491219843 | O60: 0.03515118174 | P60: -0.02447066372 | Q60: 0.05233417144
A61: 2011-11-11 | B61: 39853.18 | C61: 17.969 | D61: 28.84 | E61: 31.273 | F61: 86.822 | G61: 1984.34 | H61: 5.395 | I61: 40.833 | J61: -0.02582827933 | K61: -0.06630293583 | L61: -0.0347735868 | M61: -0.006259930092 | N61: -0.06244803196 | O61: -0.005118949136 | P61: -0.01434182881 | Q61: 0.005788462486
A62: 2011-11-18 | B62: 39106.23 | C62: 18.397 | D62: 27.913 | E62: 29.944 | F62: 85.255 | G62: 1949.55 | H62: 5.4245 | I62: 40.374 | J62: -0.01874254451 | K62: 0.02381879904 | L62: -0.03214285714 | M62: -0.04249672241 | N62: -0.01804842091 | O62: -0.01753227773 | P62: 0.00546802595 | Q62: -0.01124090809
A63: 2011-11-25 | B63: 37601.56 | C63: 17.706 | D63: 27.15 | E63: 29.163 | F63: 83.37 | G63: 1920.33 | H63: 5.0517 | I63: 39.477 | J63: -0.03847647804 | K63: -0.03756047182 | L63: -0.02733493354 | M63: -0.02608201977 | N63: -0.02211014017 | O63: -0.01498807417 | P63: -0.06872522813 | Q63: -0.02221726854
A64: 2011-12-02 | B64: 39144.14 | C64: 18.516 | D64: 28.231 | E64: 30.794 | F64: 91.233 | G64: 1874.41 | H64: 4.983 | I64: 39.925 | J64: 0.04102436176 | K64: 0.04574720434 | L64: 0.03981583794 | M64: 0.05592703083 | N64: 0.09431450162 | O64: -0.0239125567 | P64: -0.01359938239 | Q64: 0.01134838007
A65: 2011-12-09 | B65: 38637.17 | C65: 18.008 | D65: 28.454 | E65: 30.321 | F65: 90.787 | G65: 1864.67 | H65: 4.9046 | I65: 39.835 | J65: -0.01295136386 | K65: -0.02743573126 | L65: 0.007899117991 | M65: -0.01536013509 | N65: -0.004888581982 | O65: -0.00519630177 | P65: -0.01573349388 | Q65: -0.002254226675
A66: 2011-12-16 | B66: 37001.49 | C66: 17.661 | D66: 27.638 | E66: 27.267 | F66: 88.469 | G66: 1850.74 | H66: 4.7967 | I66: 39.835 | J66: -0.04233436352 | K66: -0.01926921368 | L66: -0.02867786603 | M66: -0.1007222717 | N66: -0.02553228987 | O66: -0.007470490757 | P66: -0.02199975533 | Q66: 0
A67: 2011-12-23 | B67: 37788.65 | C67: 17.741 | D67: 28.102 | E67: 26.58 | F67: 91.233 | G67: 1824.77 | H67: 5.0321 | I67: 41.719 | J67: 0.0212737379 | K67: 0.004529754827 | L67: 0.01678847963 | M67: -0.02519529101 | N67: 0.03124258215 | O67: -0.01403222495 | P67: 0.04907540601 | Q67: 0.04729509226
A68: 2011-12-30 | B68: 37595.44 | C68: 17.598 | D68: 27.568 | E68: 26.698 | F68: 88.846 | G68: 1870.23 | H68: 5.1694 | I68: 42.17 | J68: -0.005112910887 | K68: -0.008060425004 | L68: -0.01900220625 | M68: 0.004439428141 | N68: -0.02616377846 | O68: 0.02491272873 | P68: 0.02728483138 | Q68: 0.01081042211
A69: 2012-01-06 | B69: 37739.39 | C69: 17.798 | D69: 27.579 | E69: 26.958 | F69: 87.648 | G69: 1857.7 | H69: 5.0321 | I69: 43.066 | J69: 0.003828921805 | K69: 0.01136492783 | L69: 0.0003990133488 | M69: 0.009738557195 | N69: -0.01348400603 | O69: -0.006699710731 | P69: -0.02656014238 | Q69: 0.02124733223
A70: 2012-01-13 | B70: 37991.91 | C70: 17.485 | D70: 27.278 | E70: 26.738 | F70: 87.709 | G70: 1818.27 | H70: 5.0321 | I70: 41.882 | J70: 0.006691152136 | K70: -0.01758624565 | L70: -0.01091410131 | M70: -0.008160842792 | N70: 0.0006959656809 | O70: -0.02122517091 | P70: 0 | Q70: -0.02749268565
A71: 2012-01-20 | B71: 39518.87 | C71: 18.623 | D71: 28.582 | E71: 29.259 | F71: 96.012 | G71: 1871.63 | H71: 5.14 | I71: 41.809 | J71: 0.0401917145 | K71: 0.06508435802 | L71: 0.04780409121 | M71: 0.09428528686 | N71: 0.09466531371 | O71: 0.02934657669 | P71: 0.02144234018 | Q71: -0.001742992216
A72: 2012-01-27 | B72: 40467.92 | C72: 19.257 | D72: 29.819 | E72: 28.786 | F72: 98.398 | G72: 1830.34 | H72: 5.9738 | I72: 45.757 | J72: 0.02401510974 | K72: 0.03404392418 | L72: 0.04327898677 | M72: -0.01616596603 | N72: 0.02485106028 | O72: -0.02206098428 | P72: 0.1622178988 | Q72: 0.09442942907
A73: 2012-02-03 | B73: 41732.3 | C73: 19.791 | D73: 31.046 | E73: 30.874 | F73: 100.86 | G73: 2001.96 | H73: 6.0915 | I73: 48.448 | J73: 0.0312440076 | K73: 0.02773017604 | L73: 0.04114826118 | M73: 0.0725352602 | N73: 0.02502083376 | O73: 0.09376400013 | P73: 0.0197027018 | Q73: 0.05881067378
A74: 2012-02-10 | B74: 41219.43 | C74: 19.165 | D74: 30.428 | E74: 29.218 | F74: 98.783 | G74: 1970.41 | H74: 5.7972 | I74: 47.551 | J74: -0.01228952155 | K74: -0.03163053913 | L74: -0.01990594602 | M74: -0.05363736477 | N74: -0.02059290105 | O74: -0.01575955564 | P74: -0.04831322334 | Q74: -0.01851469617
A75: 2012-02-17 | B75: 42161.4 | C75: 19.422 | D75: 30.686 | E75: 28.983 | F75: 100.86 | G75: 2022.37 | H75: 5.8267 | I75: 48.448 | J75: 0.0228525722 | K75: 0.01340986173 | L75: 0.00847903247 | M75: -0.0080429872 | N75: 0.02102588502 | O75: 0.02637014631 | P75: 0.005088663493 | Q75: 0.01886395659
A76: 2012-02-24 | B76: 41499.43 | C76: 19.136 | D76: 29.184 | E76: 28.101 | F76: 95.955 | G76: 2152.24 | H76: 5.7972 | I76: 47.013 | J76: -0.01570085434 | K76: -0.01472556894 | L76: -0.04894740272 | M76: -0.03043163234 | N76: -0.04863176681 | O76: 0.06421673581 | P76: -0.005062900098 | Q76: -0.02961938573
A77: 2012-03-02 | B77: 41639.72 | C77: 18.767 | D77: 29.604 | E77: 27.566 | F77: 98.088 | G77: 2217.2 | H77: 5.6011 | I77: 49.345 | J77: 0.003380528359 | K77: -0.01928302676 | L77: 0.01439144737 | M77: -0.01903846838 | N77: 0.02222916992 | O77: 0.03018250753 | P77: -0.03382667495 | Q77: 0.04960330121
A78: 2012-03-09 | B78: 41236.46 | C78: 18.795 | D78: 29.45 | E78: 28.383 | F78: 95.382 | G78: 2412.01 | H78: 5.9738 | I78: 49.884 | J78: -0.009684503162 | K78: 0.001491980604 | L78: -0.00520199973 | M78: 0.02963795981 | N78: -0.02758747247 | O78: 0.08786307054 | P78: 0.06654050097 | Q78: 0.01092309251
A79: 2012-03-16 | B79: 42209.33 | C79: 18.909 | D79: 29.905 | E79: 29.386 | F79: 96.078 | G79: 2402.73 | H79: 6.4545 | I79: 52.036 | J79: 0.02359247132 | K79: 0.006065442937 | L79: 0.01544991511 | M79: 0.03533805447 | N79: 0.007296974272 | O79: -0.003847413568 | P79: 0.08046804379 | Q79: 0.043140085
A80: 2012-03-23 | B80: 41209.99 | C80: 18.453 | D80: 28.858 | E80: 30.604 | F80: 96.763 | G80: 2320.64 | H80: 6.2289 | I80: 51.589 | J80: -0.02367580817 | K80: -0.02411550056 | L80: -0.03501086775 | M80: 0.04144830872 | N80: 0.007129623847 | O80: -0.03416530363 | P80: -0.03495235882 | Q80: -0.00859020678
A81: 2012-03-30 | B81: 41267.16 | C81: 18.51 | D81: 28.845 | E81: 29.415 | F81: 97.515 | G81: 2444.48 | H81: 6.788 | I81: 51.54 | J81: 0.001387284976 | K81: 0.003088928629 | L81: -0.0004504816689 | M81: -0.03885113057 | N81: 0.007771565578 | O81: 0.05336458908 | P81: 0.08975902647 | Q81: =I81/I80-1 -> -0.000949814883
A82: 2012-04-06 | B82: 40802.41 | C82: 18.181 | D82: 28.239 | E82: 29.33 | F82: 91.862 | G82: 2686.14 | H82: 6.4054 | I82: 51.14 | J82: =B82/B81-1 -> -0.01126198168 | K82: -0.01777417612 | L82: -0.02100884035 | M82: -0.002889682135 | N82: -0.05797056863 | O82: 0.09885947113 | P82: -0.05636417207 | Q82: -0.007760962359
A83: 2012-04-13 | B83: 40668.71 | C83: 18.004 | D83: 28.927 | E83: 28.793 | F83: 91.678 | G83: 2690.3 | H83: 6.2289 | I83: 50.423 | J83: -0.00327676723 | K83: -0.009735438095 | L83: 0.02436346896 | M83: -0.01830889874 | N83: -0.002003004507 | O83: 0.001548690686 | P83: -0.02755487557 | Q83: -0.01402033633
A84: 2012-04-20 | B84: 40141.26 | C84: 17.776 | D84: 27.811 | E84: 29.259 | F84: 90.612 | G84: 2644.84 | H84: 5.7972 | I84: 50.377 | J84: -0.01296943031 | K84: -0.01266385248 | L84: -0.03857987347 | M84: 0.01618448929 | N84: -0.01162765331 | O84: -0.01689774375 | P84: -0.06930597698 | Q84: -0.0009122820935
A85: 2012-04-27 | B85: 40248.63 | C85: 18.481 | D85: 28.712 | E85: 28.905 | F85: 95.627 | G85: 2630.94 | H85: 5.2773 | I85: 50.601 | J85: 0.00267480393 | K85: 0.03966021602 | L85: 0.03239725289 | M85: -0.01209884138 | N85: 0.0553458703 | O85: -0.005255516402 | P85: -0.08968122542 | Q85: 0.004446473589
A86: 2012-05-04 | B86: 39888 | C86: 18.283 | D86: 28.094 | E86: 27.911 | F86: 93.748 | G86: 2690.3 | H86: 4.9634 | I86: 56.523 | J86: -0.008960056529 | K86: -0.01071370597 | L86: -0.02152410142 | M86: -0.0343885141 | N86: -0.01964926224 | O86: 0.02256227812 | P86: -0.05948117409 | Q86: 0.1170332602
A87: 2012-05-11 | B87: 39278.24 | C87: 18.208 | D87: 27.725 | E87: 27.416 | F87: 89.414 | G87: 2710.72 | H87: 5.0321 | I87: 51.14 | J87: -0.01528680305 | K87: -0.004102171416 | L87: -0.01313447711 | M87: -0.01773494321 | N87: -0.04623031958 | O87: 0.007590231573 | P87: 0.01384131845 | Q87: -0.09523556782
A88: 2012-05-18 | B88: 37255.68 | C88: 17.274 | D88: 26.611 | E88: 26.541 | F88: 83.681 | G88: 2657.83 | H88: 4.7084 | I88: 47.372 | J88: -0.05149314226 | K88: -0.05129613357 | L88: -0.04018034265 | M88: -0.03191566968 | N88: -0.06411747601 | O88: -0.01951142132 | P88: -0.06432702053 | Q88: -0.07368009386
A89: 2012-05-25 | B89: 36860.67 | C89: 16.972 | D89: 26.745 | E89: 26.943 | F89: 82.676 | G89: 2704.21 | H89: 4.4141 | I89: 47.955 | J89: -0.01060267857 | K89: -0.01748292231 | L89: 0.005035511631 | M89: 0.0151463773 | N89: -0.01200989472 | O89: 0.01745032602 | P89: -0.06250530966 | Q89: 0.01230684793
A90: 2012-06-01 | B90: 37312.07 | C90: 16.853 | D90: 27.13 | E90: 25.597 | F90: 86.822 | G90: 2690.3 | H90: 4.5515 | I90: 47.551 | J90: 0.0122461149 | K90: -0.007011548433 | L90: 0.01439521406 | M90: -0.0499573173 | N90: 0.05014756398 | O90: -0.005143831285 | P90: 0.03112752316 | Q90: -0.008424564696
A91: 2012-06-08 | B91: 38526.59 | C91: 17.714 | D91: 28.488 | E91: 25.872 | F91: 87.455 | G91: 2644.39 | H91: 4.6103 | I91: 47.999 | J91: 0.03255032487 | K91: 0.05108882692 | L91: 0.05005528935 | M91: 0.0107434465 | N91: 0.007290778835 | O91: -0.01706501134 | P91: 0.01291881797 | Q91: 0.009421463271
A92: 2012-06-15 | B92: 39738.57 | C92: 18.544 | D92: 29.452 | E92: 28.392 | F92: 92.833 | G92: 2877.7 | H92: 4.5612 | I92: 50.871 | J92: 0.03145827336 | K92: 0.04685559445 | L92: 0.03383880932 | M92: 0.0974025974 | N92: 0.06149448288 | O92: 0.08822828705 | P92: -0.01065006616 | Q92: 0.05983457989
A93: 2012-06-22 | B93: 40187.43 | C93: 18.584 | D93: 30.086 | E93: 28.511 | F93: 94.011 | G93: 2951.91 | H93: 4.9144 | I93: 51.542 | J93: 0.01129532341 | K93: 0.002157031924 | L93: 0.02152655168 | M93: 0.004191321499 | N93: 0.0126894531 | O93: 0.02578795566 | P93: 0.07743576252 | Q93: 0.01319022626
A94: 2012-06-29 | B94: 40810.88 | C94: 19.022 | D94: 30.899 | E94: 29.463 | F94: 99.046 | G94: 3006.19 | H94: 5.0321 | I94: 52.937 | J94: 0.01551355735 | K94: 0.02356866121 | L94: 0.0270225354 | M94: 0.03339062116 | N94: 0.05355756241 | O94: 0.01838809449 | P94: 0.02395002442 | Q94: 0.02706530596
A95: 2012-07-06 | B95: 40792.66 | C95: 18.767 | D95: 29.987 | E95: 30.471 | F95: 97.534 | G95: 3154.15 | H95: 4.5711 | I95: 51.32 | J95: -0.0004464495742 | K95: -0.01340553044 | L95: -0.0295155183 | M95: 0.034212402 | N95: -0.01526563415 | O95: 0.04921844594 | P95: -0.09161185191 | Q95: -0.03054574305
A96: 2012-07-13 | B96: 40301.29 | C96: 19.022 | D96: 29.496 | E96: 29.377 | F96: 94.274 | G96: 3246.94 | H96: 4.6103 | I96: 53.113 | J96: -0.01204554937 | K96: 0.0135876805 | L96: -0.01637376196 | M96: -0.03590298973 | N96: -0.0334242418 | O96: 0.0294183853 | P96: 0.008575616372 | Q96: 0.03493764614
A97: 2012-07-20 | B97: 40148.15 | C97: 19.586 | D97: 28.398 | E97: 29.007 | F97: 92.307 | G97: 3172.71 | H97: 4.6691 | I97: 54.101 | J97: -0.003799878366 | K97: 0.02964987909 | L97: -0.03722538649 | M97: -0.01259488716 | N97: -0.02086471349 | O97: -0.02286152501 | P97: 0.01275405071 | Q97: 0.01860184889
A98: 2012-07-27 | B98: 39935.82 | C98: 19.85 | D98: 28.746 | E98: 28.351 | F98: 89.37 | G98: 3233.94 | H98: 4.4828 | I98: 52.126 | J98: -0.005288662118 | K98: 0.01347901562 | L98: 0.01225438411 | M98: -0.02261523081 | N98: -0.03181773863 | O98: 0.01929895893 | P98: -0.03990062325 | Q98: -0.03650579472
A99: 2012-08-03 | B99: 40594.36 | C99: 20.389 | D99: 29.068 | E99: 29.14 | F99: 96.106 | G99: 3075.3 | H99: 4.4534 | I99: 52.036 | J99: 0.01648995814 | K99: 0.02715365239 | L99: 0.01120155848 | M99: 0.02782970618 | N99: 0.07537204879 | O99: -0.04905471345 | P99: -0.006558400999 | Q99: -0.001726585581
A100: 2012-08-10 | B100: 41878.23 | C100: 20.953 | D100: 30.72 | E100: 31.267 | F100: 101.33 | G100: 3040.97 | H100: 4.5024 | I100: 52.036 | J100: 0.03162680727 | K100: 0.02766197459 | L100: 0.0568322554 | M100: 0.07299245024 | N100: 0.05435664787 | O100: -0.01116313856 | P100: 0.0110028293 | Q100: 0
A101: 2012-08-17 | B101: 41940.79 | C101: 20.788 | D101: 31.238 | E101: 29.927 | F101: 102.96 | G101: 3071.58 | H101: 4.473 | I101: 51.14 | J101: 0.001493854922 | K101: -0.007874767336 | L101: 0.01686197917 | M101: -0.04285668596 | N101: 0.01608605546 | O101: 0.01006586714 | P101: -0.006529850746 | Q101: -0.01721884849
A102: 2012-08-24 | B102: 41852.69 | C102: 20.618 | D102: 31.248 | E102: 29.864 | F102: 99.83 | G102: 3080.87 | H102: 4.4239 | I102: 52.217 | J102: -0.002100580366 | K102: -0.008177794882 | L102: 0.0003201229272 | M102: -0.002105122465 | N102: -0.0304001554 | O102: 0.003024502048 | P102: -0.01097697295 | Q102: 0.02105983575
A103: 2012-08-31 | B103: 41573.57 | C103: 20.981 | D103: 31.792 | E103: 30.755 | F103: 98.445 | G103: 2875.84 | H103: 4.3651 | I103: 50.246 | J103: -0.006669105379 | K103: 0.01760597536 | L103: 0.01740911418 | M103: 0.02983525315 | N103: -0.01387358509 | O103: -0.06654938378 | P103: -0.01329143968 | Q103: -0.03774632782
A104: 2012-09-07 | B104: 42503.57 | C104: 21.133 | D104: 32.953 | E104: 33.851 | F104: 104.07 | G104: 3073.27 | H104: 4.3651 | I104: 48.899 | J104: 0.0223699817 | K104: 0.007244649921 | L104: 0.03651862104 | M104: 0.1006665583 | N104: 0.05713850373 | O104: 0.06865124624 | P104: 0 | Q104: -0.02680810413
A105: 2012-09-14 | B105: 44089.49 | C105: 22.064 | D105: 33.935 | E105: 36.252 | F105: 105.85 | G105: 3120.86 | H105: 4.7771 | I105: 48.445 | J105: 0.03731263044 | K105: 0.04405432262 | L105: 0.02980001821 | M105: 0.07092848069 | N105: 0.01710387239 | O105: 0.01548513473 | P105: 0.09438500836 | Q105: -0.009284443445
A106: 2012-09-21 | B106: 43701.32 | C106: 22.075 | D106: 32.855 | E106: 33.787 | F106: 104.41 | G106: 3206 | H106: 4.9733 | I106: 48.713 | J106: -0.008804139036 | K106: 0.0004985496737 | L106: -0.03182554884 | M106: -0.06799624848 | N106: -0.01360415683 | O106: 0.02728094179 | P106: 0.04107094262 | Q106: 0.005532046651
A107: 2012-09-28 | B107: 43739.81 | C107: 21.862 | D107: 31.792 | E107: 35.834 | F107: 103.16 | G107: 3235.03 | H107: 5.1106 | I107: 51.201 | J107: 0.0008807514281 | K107: -0.009648924122 | L107: -0.03235428398 | M107: 0.06058543227 | N107: -0.01197203333 | O107: 0.009054897068 | P107: 0.02760742364 | Q107: 0.05107466179
A108: 2012-10-05 | B108: 44524.65 | C108: 22.518 | D108: 32.684 | E108: 36.07 | F108: 104.33 | G108: 3414.85 | H108: 5.2969 | I108: 50.183 | J108: 0.01794337927 | K108: 0.03000640381 | L108: 0.02805737292 | M108: 0.006585923983 | N108: 0.01134160527 | O108: 0.05558526505 | P108: 0.03645364536 | Q108: -0.01988242417
A109: 2012-10-12 | B109: 43988.28 | C109: 23.229 | D109: 32.417 | E109: 35.44 | F109: 100.54 | G109: 3634.65 | H109: 5.3754 | I109: 53.601 | J109: -0.01204658543 | K109: 0.03157474021 | L109: -0.008169134745 | M109: -0.01746603826 | N109: -0.0363270392 | O109: 0.06436593115 | P109: 0.01481998905 | Q109: 0.06811071478
A110: 2012-10-19 | B110: 43759.43 | C110: 22.786 | D110: 32.863 | E110: 33.015 | F110: 99.112 | G110: 3599.44 | H110: 5.4147 | I110: 52.679 | J110: -0.005202522126 | K110: -0.01907098885 | L110: 0.01375821328 | M110: -0.0684255079 | N110: -0.01420330217 | O110: -0.009687315147 | P110: 0.007311083826 | Q110: -0.01720117162
A111: 2012-10-26 | B111: 43264.17 | C111: 22.524 | D111: 31.658 | E111: 33.748 | F111: 100.03 | G111: 3710.77 | H111: 5.0026 | I111: 54.436 | J111: -0.0113177891 | K111: -0.01149828842 | L111: -0.03666737669 | M111: 0.02220202938 | N111: 0.009262248769 | O111: 0.0309298113 | P111: -0.07610763293 | Q111: 0.03335294899
A112: 2012-11-02 | B112: 43581.92 | C112: 23.35 | D112: 32.774 | E112: 33.29 | F112: 101.13 | G112: 3710.77 | H112: 5.2872 | I112: 54.112 | J112: 0.007344414558 | K112: 0.03667199432 | L112: 0.03525175311 | M112: -0.01357117459 | N112: 0.01099670099 | O112: 0 | P112: 0.05689041698 | Q112: -0.005951943567
A113: 2012-11-09 | B113: 43210.47 | C113: 23.501 | D113: 31.926 | E113: 32.786 | F113: 99.69 | G113: 3711.25 | H113: 5.0812 | I113: 55.912 | J113: -0.008523029733 | K113: 0.006466809422 | L113: -0.02587416855 | M113: -0.01513968159 | N113: -0.01423909819 | O113: 0.000129353207 | P113: -0.03896202149 | Q113: 0.03326434063
A114: 2012-11-16 | B114: 43772.6 | C114: 23.47 | D114: 31.166 | E114: 34.732 | F114: 102.31 | G114: 3713.16 | H114: 5.5912 | I114: 57.207 | J114: 0.01300911561 | K114: -0.001319092805 | L114: -0.02380504918 | M114: 0.05935460257 | N114: 0.02628147256 | O114: 0.0005146513978 | P114: 0.1003699913 | Q114: 0.02316139648
A115: 2012-11-23 | B115: 44436.63 | C115: 23.975 | D115: 30.97 | E115: 36.04 | F115: 101.07 | G115: 3863.48 | H115: 5.9247 | I115: 61.551 | J115: 0.01516999219 | K115: 0.02151683 | L115: -0.006288904575 | M115: 0.037659795 | N115: -0.01212002737 | O115: 0.04048303871 | P115: 0.0596473029 | Q115: 0.07593476323
A116: 2012-11-30 | B116: 45014.74 | C116: 23.969 | D116: 31.077 | E116: 35.992 | F116: 103.09 | G116: 4137.98 | H116: 5.9639 | I116: 65.246 | J116: 0.01300976244 | K116: -0.0002502606882 | L116: 0.003454956409 | M116: -0.001331853496 | N116: 0.01998614821 | O116: 0.07104993426 | P116: 0.006616368761 | Q116: 0.06003151858
A117: 2012-12-07 | B117: 45538.45 | C117: 24.535 | D117: 31.613 | E117: 36.236 | F117: 107.22 | G117: 4144.63 | H117: 6.0817 | I117: 63.768 | J117: 0.01163418916 | K117: 0.02361383454 | L117: 0.01724748206 | M117: 0.006779284285 | N117: 0.04006208168 | O117: 0.001607064316 | P117: 0.01975217559 | Q117: -0.02265272967
A118: 2012-12-14 | B118: 46912.94 | C118: 25.499 | D118: 31.97 | E118: 38.969 | F118: 106.04 | G118: 4400.59 | H118: 6.1503 | I118: 69.128 | J118: 0.03018306508 | K118: 0.03929080905 | L118: 0.01129282257 | M118: =E118/E117-1 -> 0.07542223203 | N118: -0.01100540944 | O118: 0.06175702053 | P118: 0.01127974086 | Q118: 0.08405469828
A119: 2012-12-21 | B119: 47479.87 | C119: 26.55 | D119: 32.507 | E119: 40.087 | F119: 109.83 | G119: 4471.47 | H119: 6.0228 | I119: 66.587 | J119: =B119/B118-1 -> 0.01208472545 | K119: 0.04121730264 | L119: 0.01679699718 | M119: 0.02868947112 | N119: 0.03574122972 | O119: 0.01610693112 | P119: -0.02073069606 | Q119: -0.03675789839
A120: 2012-12-28 | B120: 47460.59 | C120: 26.539 | D120: 32.953 | E120: 38.985 | F120: 109.5 | G120: 4329.24 | H120: 6.0817 | I120: 67.465 | J120: -0.0004060668237 | K120: -0.0004143126177 | L120: 0.01372012182 | M120: -0.0274902088 | N120: -0.00300464354 | O120: -0.03180833149 | P120: 0.009779504549 | Q120: 0.01318575698
A121: 2013-01-04 | B121: 47888.16 | C121: 25.687 | D121: 32.774 | E121: 40.402 | F121: 109.76 | G121: 4399.65 | H121: 6.5133 | I121: 69.035 | J121: 0.009008948266 | K121: -0.03210369645 | L121: -0.005431978879 | M121: 0.03634731307 | N121: 0.002374429224 | O121: 0.0162638246 | P121: 0.07096699936 | Q121: 0.02327132587
A122: 2013-01-11 | B122: 47440.8 | C122: 24.984 | D122: 32.078 | E122: 38.354 | F122: 108.2 | G122: 4662.25 | H122: 6.3759 | I122: 66.448 | J122: -0.009341766316 | K122: -0.0273679293 | L122: -0.02123634588 | M122: -0.05069055987 | N122: -0.01421282799 | O122: 0.05968656598 | P122: -0.02109529731 | Q122: -0.0374737452
A123: 2013-01-18 | B123: 47813.69 | C123: 24.472 | D123: 32.399 | E123: 39.692 | F123: 111.15 | G123: 4709.81 | H123: 6.5721 | I123: 67.095 | J123: 0.007860111971 | K123: -0.02049311559 | L123: 0.01000685828 | M123: 0.03488553997 | N123: 0.02726432532 | O123: 0.01020108317 | P123: 0.03077212629 | Q123: 0.009736937154
A124: 2013-01-25 | B124: 47613.95 | C124: 24.535 | D124: 30.987 | E124: 40.716 | F124: 110.28 | G124: 4757.4 | H124: 6.4937 | I124: 68.528 | J124: -0.004177464655 | K124: 0.002574370709 | L124: -0.04358159202 | M124: 0.0257986496 | N124: -0.007827260459 | O124: 0.01010444158 | P124: -0.01192921593 | Q124: 0.02135777629
A125: 2013-02-01 | B125: 46945.58 | C125: 24.764 | D125: 30.81 | E125: 38.985 | F125: 101.01 | G125: 4709.81 | H125: 6.6212 | I125: 67.465 | J125: -0.01403727269 | K125: 0.009333605054 | L125: -0.005712072805 | M125: -0.04251399941 | N125: -0.08405875952 | O125: -0.01000336318 | P125: 0.01963441489 | Q125: -0.01551190754
A126: 2013-02-08 | B126: 46741.54 | C126: 24.794 | D126: 31.774 | E126: 38.395 | F126: 104.07 | G126: 4614.68 | H126: 6.8173 | I126: 63.399 | J126: -0.004346309067 | K126: 0.001211435955 | L126: 0.03128854268 | M126: -0.01513402591 | N126: 0.03029403029 | O126: -0.02019826702 | P126: 0.02961698786 | Q126: -0.06026828726
A127: 2013-02-15 | B127: 46370.13 | C127: 24.868 | D127: 31.577 | E127: 40.283 | F127: 104.54 | G127: 4700.32 | H127: 7.1803 | I127: 65.246 | J127: -0.007946036866 | K127: 0.002984593047 | L127: -0.006200037767 | M127: 0.04917306941 | N127: 0.004516191025 | O127: 0.01855816655 | P127: 0.0532468866 | Q127: 0.02913295162
A128: 2013-02-22 | B128: 45948.12 | C128: 24.832 | D128: 30.925 | E128: 42.331 | F128: 104.28 | G128: 4577.56 | H128: 7.1999 | I128: 64.461 | J128: -0.009100901809 | K128: -0.001447643558 | L128: -0.02064793996 | M128: 0.05084030484 | N128: -0.002487086283 | O128: -0.02611737073 | P128: 0.00272969096 | Q128: -0.0120313889
A129: 2013-03-01 | B129: 46341.14 | C129: 24.607 | D129: 31.523 | E129: 43.237 | F129: 103.94 | G129: 4676.52 | H129: 7.1116 | I129: 66.08 | J129: 0.008553559972 | K129: -0.009060889175 | L129: 0.0193371059 | M129: 0.02140275448 | N129: -0.003260452628 | O129: 0.02161850418 | P129: -0.01226405922 | Q129: 0.02511596159
A130: 2013-03-08 | B130: 47074.39 | C130: 25.895 | D130: 30.542 | E130: 44.735 | F130: 105.06 | G130: 5128.48 | H130: 7.553 | I130: 72.316 | J130: 0.01582287358 | K130: 0.05234282928 | L130: -0.0311201345 | M130: 0.03464625205 | N130: 0.01077544737 | O130: 0.09664451344 | P130: 0.06206760785 | Q130: 0.09437046005
A131: 2013-03-15 | B131: 47125.93 | C131: 25.232 | D131: 31.266 | E131: 43.119 | F131: 107.35 | G131: 5375.87 | H131: 7.4942 | I131: 72.086 | J131: 0.001094862833 | K131: -0.02560339834 | L131: 0.02370506188 | M131: -0.03612384039 | N131: 0.02179706834 | O131: 0.04823846442 | P131: -0.007784986098 | Q131: -0.003180485646
A132: 2013-03-22 | B132: 45066.18 | C132: 24.625 | D132: 30.139 | E132: 41.072 | F132: 100.67 | G132: 5290.23 | H132: 6.8468 | I132: 69.314 | J132: -0.04370736026 | K132: -0.02405675333 | L132: -0.03604554468 | M132: -0.04747327164 | N132: -0.06222636237 | O132: -0.01593044475 | P132: -0.0863868058 | Q132: -0.03845406875
A133: 2013-03-29 | B133: 45147.57 | C133: 24.535 | D133: 30.854 | E133: 40.481 | F133: 102.63 | G133: 5375.87 | H133: 6.7389 | I133: 65.433 | J133: 0.001806010627 | K133: -0.003654822335 | L133: 0.02372341484 | M133: -0.01438936502 | N133: 0.01946955399 | O133: 0.01618833208 | P133: -0.01575918677 | Q133: -0.05599157457
A134: 2013-04-05 | B134: 44597.66 | C134: 24.285 | D134: 31.067 | E134: 39.378 | F134: 99.375 | G134: 5487.18 | H134: 6.68 | I134: 64.693 | J134: -0.01218027903 | K134: -0.01018952517 | L134: 0.00690348091 | M134: -0.02724735061 | N134: -0.03171587255 | O134: 0.02070548581 | P134: -0.008740298862 | Q134: -0.01130927819
A135: 2013-04-12 | B135: 45525.92 | C135: 25.712 | D135: 30.863 | E135: 40.519 | F135: 103.74 | G135: 5801.16 | H135: 6.788 | I135: 66.403 | J135: 0.02081409652 | K135: 0.05876055178 | L135: -0.00656645315 | M135: 0.02897557012 | N135: 0.0439245283 | O135: 0.05722064886 | P135: 0.01616766467 | Q135: 0.0264325352
A136: 2013-04-19 | B136: 43447.75 | C136: 24.677 | D136: 30.309 | E136: 37.41 | F136: 101.26 | G136: 5708.87 | H136: 6.5329 | I136: 65.617 | J136: -0.04564806159 | K136: -0.0402535781 | L136: -0.01795029647 | M136: -0.07672943557 | N136: -0.02390591864 | O136: -0.01590888719 | P136: -0.03758102534 | Q136: -0.0118368146
A137: 2013-04-26 | B137: 43665.21 | C137: 25.749 | D137: 29.22 | E137: 38.354 | F137: 100.03 | G137: 5851.6 | H137: 7.043 | I137: 65.607 | J137: 0.005005092324 | K137: 0.04344126109 | L137: -0.03592992181 | M137: 0.02523389468 | N137: -0.01214694845 | O137: 0.02500144512 | P137: 0.0780817095 | Q137: -0.0001523995306
A138: 2013-05-03 | B138: 43991.51 | C138: 26.875 | D138: 29.291 | E138: 37.017 | F138: 96.951 | G138: 6137.04 | H138: 7.2686 | I138: 66.263 | J138: 0.007472768366 | K138: 0.04372985359 | L138: 0.002429842574 | M138: -0.03485946707 | N138: -0.03078076577 | O138: 0.0487798209 | P138: 0.03203180463 | Q138: 0.009998933041
A139: 2013-05-10 | B139: 44895.35 | C139: 27.207 | D139: 29.63 | E139: 38.056 | F139: 98.52 | G139: 6670.83 | H139: 7.661 | I139: 68.388 | J139: 0.02054578258 | K139: 0.01235348837 | L139: 0.01157352088 | M139: 0.02806818489 | N139: 0.01618343287 | O139: 0.08697841305 | P139: 0.05398563685 | Q139: 0.03206917888
A140: 2013-05-17 | B140: 46078.68 | C140: 26.344 | D140: 30.407 | E140: 40.646 | F140: 104.96 | G140: 6360.65 | H140: 7.5334 | I140: 70.423 | J140: 0.02635751809 | K140: -0.031719778 | L140: 0.02622342221 | M140: 0.06805759933 | N140: 0.06536743808 | O140: -0.04649796202 | P140: -0.01665578906 | Q140: 0.02975668246
A141: 2013-05-24 | B141: 46145.44 | C141: 26.806 | D141: 30.096 | E141: 40.562 | F141: 105.9 | G141: 6232.17 | H141: 8.2397 | I141: 76.244 | J141: 0.001448826225 | K141: 0.01753720012 | L141: -0.01022790805 | M141: -0.002066624022 | N141: 0.008955792683 | O141: -0.02019919348 | P141: 0.09375580747 | Q141: 0.08265765446
A142: 2013-05-31 | B142: 47806.34 | C142: 27.935 | D142: 31.085 | E142: 41.743 | F142: 108.68 | G142: 6403.45 | H142: 8.6223 | I142: 72.914 | J142: 0.03599272214 | K142: 0.04211743639 | L142: 0.03286150984 | M142: 0.02911592131 | N142: 0.02625118036 | O142: 0.02748320408 | P142: 0.04643372938 | Q142: -0.04367556791
A143: 2013-06-07 | B143: 48209.65 | C143: 26.811 | D143: 32.06 | E143: 42.521 | F143: 109.5 | G143: 6755.51 | H143: 8.583 | I143: 74.441 | J143: 0.008436328738 | K143: -0.04023626275 | L143: 0.03136561042 | M143: 0.01863785545 | N143: 0.007545086492 | O143: 0.05497973749 | P143: -0.004557948575 | Q143: 0.02094248018
A144: 2013-06-14 | B144: 48273.42 | C144: 26.478 | D144: 32.907 | E144: 41.506 | F144: 110.36 | G144: 6750.73 | H144: 9.3187 | I144: 75.784 | J144: 0.001322764218 | K144: -0.01242027526 | L144: 0.02641921397 | M144: -0.02387055808 | N144: 0.007853881279 | O144: -0.0007075705609 | P144: 0.08571595013 | Q144: 0.01804113325
A145: 2013-06-21 | B145: 44732.92 | C145: 24.472 | D145: 30.417 | E145: 35.834 | F145: 101.71 | G145: 6567.12 | H145: 8.3476 | I145: 80.118 | J145: -0.07334263866 | K145: -0.07576100914 | L145: -0.07566779105 | M145: -0.1366549415 | N145: -0.07837984777 | O145: -0.02719854001 | P145: -0.1042098147 | Q145: 0.05718885253
A146: 2013-06-28 | B146: 44747.79 | C146: 24.881 | D146: 31.792 | E146: 36.702 | F146: 103.22 | G146: 6232.17 | H146: 9.0735 | I146: 78.556 | J146: 0.0003324173785 | K146: 0.0167129781 | L146: 0.04520498405 | M146: 0.02422280516 | N146: 0.01484613116 | O146: -0.05100409312 | P146: 0.08695912598 | Q146: -0.01949624304
A147: 2013-07-05 | B147: 45110.89 | C147: 25.927 | D147: 30.81 | E147: 36.111 | F147: 98.614 | G147: 6612.78 | H147: 8.9263 | I147: 79.294 | J147: 0.008114367212 | K147: 0.04204011093 | L147: -0.03088827378 | M147: -0.0161026647 | N147: -0.04462313505 | O147: 0.0610718257 | P147: -0.01622306717 | Q147: 0.009394572025
A148: 2013-07-12 | B148: 46150.78 | C148: 26.496 | D148: 32.104 | E148: 38.365 | F148: 104.6 | G148: 6385.38 | H148: 9.1421 | I148: 80.173 | J148: 0.02305186176 | K148: 0.02194623366 | L148: 0.04199935086 | M148: 0.0624186536 | N148: 0.0607013203 | O148: -0.03438795786 | P148: 0.02417575031 | Q148: 0.01108532802
A149: 2013-07-19 | B149: 46399.74 | C149: 26.295 | D149: 32.855 | E149: 38.641 | F149: 109.43 | G149: 6203.65 | H149: 9.4168 | I149: 82.252 | J149: 0.005394491707 | K149: -0.007586050725 | L149: 0.02339272365 | M149: 0.007194057083 | N149: 0.04617590822 | O149: -0.02846032656 | P149: 0.03004780083 | Q149: 0.0259314233
A150: 2013-07-26 | B150: 46258.91 | C150: 27.291 | D150: 32.327 | E150: 34.988 | F150: 110.78 | G150: 6470.07 | H150: 9.643 | I150: 83.637 | J150: -0.003035146318 | K150: 0.03787792356 | L150: -0.0160706133 | M150: -0.09453689087 | N150: 0.01233665357 | O150: 0.0429456852 | P150: 0.02402089882 | Q150: 0.01683849633
A151: 2013-08-02 | B151: 48325.33 | C151: 28.293 | D151: 34.828 | E151: 36.575 | F151: 113.48 | G151: 6945.8 | H151: 10.182 | I151: 89.553 | J151: 0.04467074559 | K151: 0.03671540068 | L151: 0.07736566956 | M151: 0.0453584086 | N151: 0.02437263044 | O151: 0.073527798 | P151: 0.05589546822 | Q151: 0.07073424441
A152: 2013-08-09 | B152: 49125.36 | C152: 27.45 | D152: 34.828 | E152: 36.942 | F152: 118.36 | G152: 7849.61 | H152: 10.467 | I152: 94.131 | J152: 0.01655508612 | K152: -0.02979535574 | L152: 0 | M152: 0.01003417635 | N152: 0.04300317237 | O152: 0.1301232399 | P152: 0.0279905716 | Q152: 0.05112056548
A153: 2013-08-16 | B153: 49976.48 | C153: 28.232 | D153: 34.828 | E153: 36.413 | F153: 122.43 | G153: 8373.03 | H153: 11.075 | I153: 99.82 | J153: 0.017325471 | K153: 0.02848816029 | L153: 0 | M153: -0.01431974446 | N153: 0.0343866171 | O153: 0.06668101982 | P153: 0.05808732206 | Q153: 0.06043705049
A154: 2013-08-23 | B154: 49895.1 | C154: 28.565 | D154: 34.533 | E154: 37.593 | F154: 119.68 | G154: 8182.73 | H154: 11.859 | I154: 93.438 | J154: -0.001628365983 | K154: 0.0117951261 | L154: -0.008470196394 | M154: 0.03240600884 | N154: -0.02246181491 | O154: -0.02272773417 | P154: 0.07079006772 | Q154: -0.06393508315
A155: 2013-08-30 | B155: 48871.98 | C155: 28.432 | D155: 34.211 | E155: 36.607 | F155: 119.74 | G155: 7450.09 | H155: 12.134 | I155: 90.616 | J155: -0.02050542037 | K155: -0.004656047611 | L155: -0.009324414328 | M155: -0.02622828718 | N155: 0.0005013368984 | O155: -0.08953491072 | P155: 0.02318913905 | Q155: -0.03020184507
A156: 2013-09-06 | B156: 46717.04 | C156: 25.961 | D156: 31.451 | E156: 33.523 | F156: 112.51 | G156: 7211.87 | H156: 12.193 | I156: 92.417 | J156: -0.04409356854 | K156: -0.08690911649 | L156: -0.08067580603 | M156: -0.08424618242 | N156: -0.06038082512 | O156: -0.03197545265 | P156: 0.004862370199 | Q156: 0.01987507725
A157: 2013-09-13 | B157: 49348.61 | C157: 27.415 | D157: 33.803 | E157: 35.071 | F157: 117.68 | G157: 7499.39 | H157: 13.487 | I157: 96.112 | J157: 0.05632998152 | K157: 0.05600708755 | L157: 0.07478299577 | M157: 0.04617725144 | N157: 0.04595147098 | O157: 0.03986760715 | P157: 0.106126466 | Q157: 0.03998182153
A158: 2013-09-20 | B158: 50308.19 | C158: 28.571 | D158: 33.841 | E158: 36.525 | F158: 121.8 | G158: 7884.96 | H158: 13.497 | I158: 104.43 | J158: 0.01944492459 | K158: 0.04216669706 | L158: 0.001124160577 | M158: 0.0414587551 | N158: 0.03501019714 | O158: 0.05141351497 | P158: 0.0007414547342 | Q158: 0.08654486432
A159: 2013-09-27 | B159: 50819.81 | C159: 28.039 | D159: 34.956 | E159: 36.617 | F159: 125.25 | G159: 8279.22 | H159: 14.517 | I159: 105.95 | J159: 0.01016971591 | K159: -0.0186202793 | L159: 0.03294819893 | M159: 0.002518822724 | N159: 0.02832512315 | O159: 0.05000152188 | P159: 0.07557234941 | Q159: 0.01455520444
A160: 2013-10-04 | B160: 50601.24 | C160: 27.605 | D160: 35.106 | E160: 35.209 | F160: 126.07 | G160: 9112.91 | H160: 14.616 | I160: 110.36 | J160: -0.004300881881 | K160: -0.01547844074 | L160: 0.004291108823 | M160: -0.0384520851 | N160: 0.006546906188 | O160: 0.100696684 | P160: 0.006819590825 | Q160: 0.04162340727
A161: 2013-10-11 | B161: 52230.47 | C161: 28.11 | D161: 36.569 | E161: 36.942 | F161: 132.81 | G161: 8750.4 | H161: 14.194 | I161: 118.51 | J161: 0.03219743232 | K161: 0.01829378736 | L161: 0.04167378796 | M161: 0.04922036979 | N161: 0.05346236218 | O161: -0.03977982884 | P161: -0.02887246853 | Q161: 0.07384922073
A162: 2013-10-18 | B162: 52587.24 | C162: 28.759 | D162: 36.466 | E162: 36.372 | F162: 134.89 | G162: 8702.32 | H162: 13.929 | I162: 125.54 | J162: 0.006830687145 | K162: 0.02308786909 | L162: -0.002816593289 | M162: -0.01542959233 | N162: 0.01566147127 | O162: -0.005494605961 | P162: -0.0186698605 | Q162: 0.05931988862
A163: 2013-10-25 | B163: 53887.13 | C163: 30.382 | D163: 37.638 | E163: 36.511 | F163: 132.11 | G163: 8846.56 | H163: 14.616 | I163: 130.33 | J163: 0.02471873405 | K163: 0.05643450746 | L163: 0.03213952723 | M163: 0.003821621027 | N163: -0.02060938543 | O163: 0.01657489037 | P163: 0.04932155934 | Q163: 0.03815516967
A164: 2013-11-01 | B164: 53607.86 | C164: 30.434 | D164: 38.294 | E164: 35.396 | F164: 132.81 | G164: 8654.24 | H164: 15.204 | I164: 121.88 | J164: -0.005182499049 | K164: 0.001711539727 | L164: 0.0174291939 | M164: -0.03053874175 | N164: 0.005298614791 | O164: -0.02173952361 | P164: 0.04022988506 | Q164: -0.06483541779
A165: 2013-11-08 | B165: 53305.36 | C165: 30.76 | D165: 37.919 | E165: 35.802 | F165: 131.93 | G165: 8442.68 | H165: 15.204 | I165: 112.41 | J165: -0.005642829242 | K165: 0.01071170402 | L165: -0.009792656813 | M165: 0.01147022262 | N165: -0.006626007078 | O165: -0.02444582078 | P165: 0 | Q165: -0.07769937644
A166: 2013-11-15 | B166: 53896.03 | C166: 30.738 | D166: 38.707 | E166: 36.617 | F166: 130.75 | G166: 8697.5 | H166: 15.303 | I166: 111.29 | J166: 0.01108087442 | K166: -0.0007152145644 | L166: 0.02078113874 | M166: 0.02276409139 | N166: -0.008944137042 | O166: 0.03018235916 | P166: 0.006511444357 | Q166: -0.009963526377
A167: 2013-11-22 | B167: 54834.12 | C167: 31.737 | D167: 38.903 | E167: 37.389 | F167: 131.99 | G167: 8750.4 | H167: 16.185 | I167: 117.67 | J167: 0.01740554917 | K167: 0.032500488 | L167: 0.005063683571 | M167: 0.02108310348 | N167: 0.00948374761 | O167: 0.006082207531 | P167: 0.05763575769 | Q167: 0.0573277024
A168: 2013-11-29 | B168: 54704.89 | C168: 31.845 | D168: 38.576 | E168: 38.976 | F168: 129.62 | G168: 8827.33 | H168: 16.43 | I168: 111.76 | J168: -0.002356744304 | K168: 0.003402968144 | L168: -0.008405521425 | M168: 0.04244563909 | N168: -0.01795590575 | O168: 0.008791598098 | P168: 0.01513747297 | Q168: -0.05022520608
A169: 2013-12-06 | B169: 52727.52 | C169: 30.75 | D169: 37.216 | E169: 36.957 | F169: 126.05 | G169: 8510.02 | H169: 15.94 | I169: 109.69 | J169: -0.0361461288 | K169: -0.03438530382 | L169: -0.03525508088 | M169: -0.05180110837 | N169: -0.02754204598 | O169: -0.03594631672 | P169: -0.02982349361 | Q169: -0.0185218325
A170: 2013-12-13 | B170: 51761.82 | C170: 30.887 | D170: 36.803 | E170: 36.054 | F170: 122.52 | G170: 8556.16 | H170: 15.303 | I170: 106.41 | J170: -0.01831491411 | K170: 0.004455284553 | L170: -0.01109737747 | M170: -0.02443380144 | N170: -0.02800476002 | O170: 0.005421843897 | P170: -0.03996235885 | Q170: -0.02990245237
A171: 2013-12-20 | B171: 51097.75 | C171: 30.768 | D171: 37.684 | E171: 32.955 | F171: 122.64 | G171: 8365.77 | H171: 16.578 | I171: 105.9 | J171: -0.01282934024 | K171: -0.003852753586 | L171: 0.0239382659 | M171: -0.08595440173 | N171: 0.0009794319295 | O171: -0.02225180455 | P171: 0.08331699667 | Q171: -0.004792782633
A172: 2013-12-27 | B172: 51267.29 | C172: 30.728 | D172: 37.029 | E172: 33.377 | F172: 123.94 | G172: 8414.79 | H172: 17.264 | I172: 109.64 | J172: 0.003317954313 | K172: -0.001300052002 | L172: -0.01738138202 | M172: 0.01280534062 | N172: 0.01060013046 | O172: 0.005859592124 | P172: 0.04138014236 | Q172: 0.03531633617
A173: 2014-01-03 | B173: 51497.81 | C173: 30.457 | D173: 36.503 | E173: 34.597 | F173: 122.66 | G173: 8745.59 | H173: 16.96 | I173: 109.64 | J173: 0.004496434276 | K173: -0.008819317886 | L173: -0.0142050825 | M173: 0.03655211673 | N173: -0.01032757786 | O173: 0.03931173565 | P173: -0.01760889713 | Q173: 0
A174: 2014-01-10 | B174: 49796.5 | C174: 28.864 | D174: 35.913 | E174: 34.338 | F174: 121.8 | G174: 8173.46 | H174: 16.479 | I174: 105.01 | J174: -0.03303655049 | K174: -0.0523032472 | L174: -0.01616305509 | M174: -0.007486198225 | N174: -0.007011250611 | O174: =G174/G173-1 -> -0.06541925702 | P174: -0.02836084906 | Q174: -0.04222911346
A175: 2014-01-17 | B175: 50925.12 | C175: 29.012 | D175: 37.646 | E175: 34.256 | F175: 123.88 | G175: 8461.92 | H175: 16.931 | I175: 102.19 | J175: 0.02266464511 | K175: 0.005127494457 | L175: 0.04825550636 | M175: -0.002388024929 | N175: 0.0170771757 | O175: 0.03529227524 | P175: 0.02742884884 | Q175: -0.02685458528
A176: 2014-01-24 | B176: 50593.45 | C176: 28.662 | D176: 37.966 | E176: 31.717 | F176: 124.42 | G176: 8730.68 | H176: 18 | I176: 110.54 | J176: -0.006512895797 | K176: -0.01206397353 | L176: 0.008500239069 | M176: -0.07411840262 | N176: 0.004359057152 | O176: 0.03176111332 | P176: 0.06313862146 | Q176: 0.08171053919
A177: 2014-01-31 | B177: 50831.61 | C177: 27.949 | D177: 38.247 | E177: 31.564 | F177: 127.42 | G177: 8461.92 | H177: 17.99 | I177: 111.58 | J177: 0.004707328715 | K177: -0.02487614263 | L177: 0.007401359111 | M177: -0.004823911467 | N177: 0.02411187912 | O177: -0.03078339831 | P177: -0.0005555555556 | Q177: 0.009408358965
A178: 2014-02-07 | B178: 52137.9 | C178: 29.812 | D178: 39.373 | E178: 33.205 | F178: 128.01 | G178: 8846.47 | H178: 17.598 | I178: 113.73 | J178: 0.02569837941 | K178: 0.06665712548 | L178: 0.02944021753 | M178: 0.05198960841 | N178: 0.004630356302 | O178: 0.04544476904 | P178: -0.02178988327 | Q178: 0.01926868614
A179: 2014-02-14 | B179: 53397.03 | C179: 30.057 | D179: 40.581 | E179: 33.125 | F179: 133.51 | G179: 9260.04 | H179: 17.323 | I179: 120.01 | J179: 0.02414999453 | K179: 0.008218167181 | L179: 0.03068092348 | M179: -0.002409275711 | N179: 0.04296539333 | O179: 0.04674972051 | P179: -0.01562677577 | Q179: 0.05521849996
A180: 2014-02-21 | B180: 53400.11 | C180: 29.152 | D180: 40.45 | E180: 35.111 | F180: 131.68 | G180: 9385.05 | H180: 16.921 | I180: 121.88 | J180: 5.768111073e-05 | K180: -0.0301094587 | L180: -0.003228111678 | M180: 0.05995471698 | N180: -0.01370683844 | O180: 0.01349994168 | P180: -0.02320614212 | Q180: 0.01558203483
A181: 2014-02-28 | B181: 53811.3 | C181: 29.876 | D181: 41.387 | E181: 35.558 | F181: 132.81 | G181: 9615.82 | H181: 17.166 | I181: 123.3 | J181: 0.007700171404 | K181: 0.02483534577 | L181: 0.02316440049 | M181: 0.01273105295 | N181: 0.008581409478 | O181: 0.02458910714 | P181: 0.0144790497 | Q181: 0.01165080407
A182: 2014-03-07 | B182: 51954.46 | C182: 29.033 | D182: 39.84 | E182: 33.125 | F182: 126.91 | G182: 8760.01 | H182: 16.626 | I182: 119.16 | J182: -0.034506507 | K182: -0.02821662873 | L182: -0.03737888709 | M182: -0.06842342089 | N182: -0.04442436564 | O182: -0.08900021007 | P182: -0.03145753233 | Q182: -0.03357664234
A183: 2014-03-14 | B183: 49520.84 | C183: 28.118 | D183: 37.684 | E183: 32.995 | F183: 126.63 | G183: 7971.51 | H183: 12.713 | I183: 108.77 | J183: =B183/B182-1 -> -0.04684140688 | K183: -0.03151586126 | L183: -0.05411646586 | M183: -0.003924528302 | N183: -0.002206287921 | O183: -0.09001131277 | P183: -0.2353542644 | Q183: -0.08719368916
A184: 2014-03-21 | B184: 50555.93 | C184: 27.731 | D184: 38.481 | E184: 32.848 | F184: 127.15 | G184: 8173.46 | H184: 14.713 | I184: 120.49 | J184: 0.02090210909 | K184: -0.01376342556 | L184: 0.02114955949 | M184: -0.004455220488 | N184: 0.004106451868 | O184: 0.0253339706 | P184: 0.1573192795 | Q184: 0.1077502988
A185: 2014-03-28 | B185: 51831.67 | C185: 28.728 | D185: 39.269 | E185: 34.247 | F185: 132.48 | G185: 8603.27 | H185: 15.106 | I185: 118.13 | J185: 0.02523423068 | K185: 0.03595254408 | L185: 0.02047763832 | M185: 0.04259011203 | N185: 0.04191899331 | O185: 0.05258605291 | P185: 0.02671107184 | Q185: -0.01958668769
A186: 2014-04-04 | B186: 52660.68 | C186: 29.339 | D186: 39.84 | E186: 35.315 | F186: 136.91 | G186: 8365.77 | H186: 15.469 | I186: 125.73 | J186: 0.01599427531 | K186: 0.0212684489 | L186: 0.01454073188 | M186: 0.0311852133 | N186: 0.03343900966 | O186: -0.02760578245 | P186: 0.02403018668 | Q186: 0.06433590113
A187: 2014-04-11 | B187: 52389.75 | C187: 28.931 | D187: 39.84 | E187: 36.21 | F187: 136.26 | G187: 8005.17 | H187: 14.489 | I187: 122.54 | J187: -0.005144825323 | K187: -0.01390640444 | L187: 0 | M187: 0.02534333852 | N187: -0.004747644438 | O187: -0.04310422113 | P187: -0.06335251147 | Q187: -0.02537182852
A188: 2014-04-18 | B188: 51510.98 | C188: 29.104 | D188: 39.373 | E188: 35.437 | F188: 133.23 | G188: 7481.1 | H188: 14.341 | I188: 117.95 | J188: -0.01677370096 | K188: 0.00597974491 | L188: -0.01172188755 | M188: -0.02134769401 | N188: -0.02223690004 | O188: -0.06546644231 | P188: -0.01021464559 | Q188: -0.03745715685
A189: 2014-04-25 | B189: 51497.7 | C189: 29.02 | D189: 38.67 | E189: 36.698 | F189: 131.59 | G189: 7597.46 | H189: 14.616 | I189: 118.41 | J189: -0.0002578091118 | K189: -0.002886201209 | L189: -0.01785487517 | M189: 0.03558427632 | N189: -0.01230953989 | O189: 0.0155538624 | P189: 0.01917578969 | Q189: 0.003899957609
A190: 2014-05-02 | B190: 51782.38 | C190: 28.867 | D190: 38.622 | E190: 36.821 | F190: 133.36 | G190: 7356.1 | H190: 14.42 | I190: 117.81 | J190: 0.005528013872 | K190: -0.005272226051 | L190: -0.001241272304 | M190: 0.003351681291 | N190: 0.01345087013 | O190: -0.03176851211 | P190: -0.01340996169 | Q190: -0.0050671396
A191: 2014-05-09 | B191: 50451.79 | C191: 28.854 | D191: 37.919 | E191: 34.842 | F191: 130.24 | G191: 7404.18 | H191: 13.683 | I191: 103.5 | J191: -0.02569580618 | K191: -0.0004503412201 | L191: -0.018202061 | M191: -0.05374650335 | N191: -0.02339532094 | O191: 0.006536072103 | P191: -0.05110957004 | Q191: -0.1214667685
A192: 2014-05-16 | B192: 50858.58 | C192: 29.741 | D192: 36.373 | E192: 35.973 | F192: 123.52 | G192: 7522.93 | H192: 13.742 | I192: 105.95 | J192: 0.008062944843 | K192: 0.03074097179 | L192: -0.04077111738 | M192: 0.03246082314 | N192: -0.0515970516 | O192: 0.01603823786 | P192: 0.004311919901 | Q192: 0.02367149758
A193: 2014-05-23 | B193: 52413.38 | C193: 30.212 | D193: 38.481 | E193: 36.315 | F193: 127.53 | G193: 8038.92 | H193: 14.38 | I193: 110.63 | J193: 0.03057104622 | K193: 0.01583672371 | L193: 0.05795507657 | M193: 0.009507130348 | N193: 0.03246437824 | O193: 0.06858896733 | P193: 0.04642701208 | Q193: 0.04417177914
A194: 2014-05-30 | B194: 52066.97 | C194: 30.246 | D194: 38.06 | E194: 34.321 | F194: 127.66 | G194: 8029.21 | H194: 14.91 | I194: 112.97 | J194: -0.006609190249 | K194: 0.001125380643 | L194: -0.01094046413 | M194: -0.05490844004 | N194: 0.001019367992 | O194: -0.001207873694 | P194: 0.03685674548 | Q194: 0.02115158637
A195: 2014-06-06 | B195: 53233.18 | C195: 31.282 | D195: 38.247 | E195: 34.988 | F195: 130.47 | G195: 8221.54 | H195: 16.185 | I195: 110.45 | J195: 0.022398269 | K195: 0.03425246314 | L195: 0.004913294798 | M195: 0.01943416567 | N195: 0.02201159329 | O195: 0.02395378873 | P195: 0.08551307847 | Q195: -0.02230680712
A196: 2014-06-13 | B196: 52759.01 | C196: 31.021 | D196: 37.59 | E196: 34.375 | F196: 131.93 | G196: 8006.14 | H196: 15.792 | I196: 105.01 | J196: -0.008907414511 | K196: -0.008343456301 | L196: -0.01717781787 | M196: -0.01752029267 | N196: 0.01119031195 | O196: -0.02619947115 | P196: -0.02428174235 | Q196: -0.04925305568
A197: 2014-06-20 | B197: 52923.26 | C197: 30.466 | D197: 36.635 | E197: 34.644 | F197: 129.93 | G197: 8175.85 | H197: 16.41 | I197: 105.76 | J197: 0.003113212321 | K197: -0.01789110602 | L197: -0.025405693 | M197: 0.007825454545 | N197: -0.01515955431 | O197: 0.02119748093 | P197: 0.0391337386 | Q197: 0.007142176936
A198: 2014-06-27 | B198: 51713.44 | C198: 30.15 | D198: 35.36 | E198: 34.475 | F198: 124.49 | G198: 7986.04 | H198: 14.713 | I198: 105.38 | J198: -0.02285989185 | K198: -0.01037221821 | L198: -0.03480278422 | M198: -0.004878189585 | N198: -0.04186869853 | O198: -0.02321593473 | P198: -0.1034125533 | Q198: -0.003593040847
A199: 2014-07-04 | B199: 50995.56 | C199: 29.171 | D199: 35.266 | E199: 33.844 | F199: 127.03 | G199: 7808.05 | H199: 14.782 | I199: 105.23 | J199: -0.01388188448 | K199: -0.03247097844 | L199: -0.002658371041 | M199: -0.0183031182 | N199: 0.02040324524 | O199: -0.02228764194 | P199: 0.004689730171 | Q199: -0.001423420004
A200: 2014-07-11 | B200: 51085.89 | C200: 29.216 | D200: 35.81 | E200: 35.183 | F200: 127.03 | G200: 7692.65 | H200: 14.665 | I200: 102.81 | J200: 0.001771330681 | K200: 0.001542627952 | L200: 0.01542562241 | M200: 0.03956388134 | N200: 0 | O200: -0.01477961847 | P200: -0.007915031795 | Q200: -0.02299724413
... 324 more rows
